Cogmind - Beta 14 @@@ ROGUE MODE // 2025.03.07 @ 16:33:22 Player: Chair Result: Destroyed by P-70 Sage with High-powered Shock Rifle Performance ------------- Evolutions (6) 3000 Regions Visited (18) 3600 Robots Destroyed (353) 1765 Value Destroyed (13517) 13517 Prototype IDs (36) 720 Alien Tech Used (0) 0 Bonus (6193) 6193 TOTAL SCORE: 28795 Bonus ------- High Alert Combat Kills 670 Follower Combat Kills 978 Met Data Miner 300 Met Warlord at Base 500 MAIN.C Attacked Warlord 500 Warlord Defense Kills 3418 Friendly Fire -173 Cogmind --------- Core Integrity 0/1150 Matter 108/300 Energy 92/100 System Corruption 23% Temperature Cool (0) Movement Core (50) Location -4/Armory Parts ------- > --- POWER (2) -------- (None) > --- PROPULSION (4) --- (None) > --- UTILITY (9) ------ (None) > --- WEAPON (4) ------- (None) > --- INVENTORY (5) ---- Improved Medium Armor Plating Advanced Focal Shield Compact Tesla Bomb Launcher Peak State ------------ > --- POWER ------------ Quantum Reactor Quantum Reactor > --- PROPULSION ------- Biometal Heavy Treads Compact Wheel > --- UTILITY ---------- Advanced Cryofiber Web Improved Cooling System Huge Storage Unit Advanced Sensor Array Advanced Signal Interpreter Experimental Target Analyzer Layered Medium Armor Plating Advanced Hacking Suite Experimental System Shield > --- WEAPON ----------- Enhanced Quantum Rifle Enhanced Nova Cannon Enhanced Nova Cannon Hypervelocity Railgun > --- INVENTORY -------- Micro Antimatter Reactor Energy Well Advanced Sensor Array Makeshift Transmission Jammer Improved Phase Shifter Improved Medium Armor Plating Improved Medium Armor Plating Advanced Focal Shield Thermal Barrier Advanced System Shield Long-range Tractor Beam Enhanced Nova Cannon Enhanced Nova Cannon Enhanced Nova Cannon Hypervelocity Railgun Hypervelocity Railgun Hypervelocity Railgun Hypervelocity Railgun Enhanced Gauss Cannon Tesla Bomb Launcher Heavy Proton Missile Launcher Heavy Proton Missile Launcher Heavy Proton Missile Launcher Smartbomb Launcher [Rating: 139] Favorites ----------- Power Enhanced Nuclear Core Engine Light Angular Momentum Engine Power Core Enhanced Nuclear Core Reactor Quantum Reactor Propulsion Armored Huge Wheel Treads Light Treads Wheel Armored Huge Wheel Flight Unit Improved Cesium-ion Thruster Utility Huge Storage Unit Device Advanced Sensor Array Storage Huge Storage Unit Processor Enhanced Optical Array Hackware Hacking Suite Protection Improved Light Armor Plating Weapon Improved Assault Rifle Energy Gun Heavy Beamcaster Energy Cannon Neutron Cannon Ballistic Gun Improved Assault Rifle Ballistic Cannon Mini Assault Cannon Launcher Smartbomb Launcher Special Weapon Improved Plasma Cutter Slashing Weapon Plasma Sword Build | -11 -10 -10 -9 -9 -7 -6 -6 -6 -6 -6 -5 -5 -5 -5 -5 -4 -4 -4 ------- Run | Yrd Mat Min Mat Min Zio Pro Fac Low Low Dat Pro Fac Upp Upp War Pro Fac Arm Slots Evolved 12 | . . . 2 . . . 6 . . . . 2 . . . . 2 . Power 1 | . . . . . . . . . . . . . . . . . 1 . Propulsion 2 | . . . . . . . 2 . . . . . . . . . . . Utility 7 | . . . 1 . . . 4 . . . . 1 . . . . 1 . Weapon 2 | . . . 1 . . . . . . . . 1 . . . . . . Parts Attached 379 | 8 15 2 17 . 5 13 60 11 15 . 15 83 10 6 19 7 57 36 Power 25 | 1 3 1 2 . 1 2 3 . 1 . 1 1 . . 1 . 6 2 Engine 8 | 1 2 . 2 . . 2 . . . . . . . . . . 1 . Core 10 | . 1 1 . . . . 2 . 1 . 1 1 . . 1 . 2 . Reactor 7 | . . . . . 1 . 1 . . . . . . . . . 3 2 Propulsion 53 | 2 3 . 4 . . . 16 . 5 . 2 14 1 . . . 5 1 Treads 13 | 2 3 . . . . . . . 3 . 1 3 . . . . . 1 Leg . | . . . . . . . . . . . . . . . . . . . Wheel 39 | . . . 4 . . . 15 . 2 . 1 11 1 . . . 5 . Hover . | . . . . . . . . . . . . . . . . . . . Flight 1 | . . . . . . . 1 . . . . . . . . . . . Utility 142 | 2 4 1 3 . 1 4 28 5 5 . 7 35 1 1 12 1 23 9 Device 83 | 1 2 . 2 . . 1 13 1 2 . 3 27 1 . 10 1 15 4 Storage 5 | 1 2 . . . . . . . . . . 1 . . . . 1 . Processor 11 | . . . . . . . 3 . 1 . . 3 . 1 1 . 2 . Hackware 11 | . . . . . . . 3 1 1 . . 4 . . . . 2 . Protection 32 | . . 1 1 . 1 3 9 3 1 . 4 . . . 1 . 3 5 Artifact . | . . . . . . . . . . . . . . . . . . . Weapon 159 | 3 5 . 8 . 3 7 13 6 4 . 5 33 8 5 6 6 23 24 Energy Gun 21 | 2 . . 2 . . . . . . . . 5 1 . 1 1 6 3 Energy Cannon 19 | . 1 . . . . . 2 . . . . 3 1 . . . 7 5 Ballistic Gun 64 | 1 2 . 6 . 1 4 8 4 1 . 1 18 3 2 . 2 2 9 Ballistic Cannon 20 | . 2 . . . 2 1 2 . 2 . 3 . . 1 2 . 3 2 Launcher 31 | . . . . . . 2 1 2 1 . 1 5 3 2 3 3 4 4 Special Weapon 2 | . . . . . . . . . . . . 1 . . . . . 1 Impact Weapon . | . . . . . . . . . . . . . . . . . . . Slashing Weapon 2 | . . . . . . . . . . . . 1 . . . . 1 . Piercing Weapon . | . . . . . . . . . . . . . . . . . . . Special Melee Weapon . | . . . . . . . . . . . . . . . . . . . Unidentified Prototypes 22 | . . . 1 . . . 5 . . . . 4 1 . 3 . 5 3 Corrupted Parts 2 | . . . . . . . . . 1 . . . . . . . 1 . System Corruption 10 | . . . . . . . . . 7 . . . . . . . 3 . Parts Lost 74 | . . . . . . 3 5 4 13 . 5 13 1 1 . . 12 17 Power 6 | . . . . . . . . . 1 . . . . . . . 3 2 Propulsion 15 | . . . . . . . 2 1 4 . 1 2 . . . . 2 3 Utility 26 | . . . . . . 2 3 1 4 . 4 5 . . . . . 7 Weapon 27 | . . . . . . 1 . 2 4 . . 6 1 1 . . 7 5 Highest Loss Streak 14 | . . . . . . 1 1 4 9 . 2 3 1 1 . . 5 14 To Critical Strikes . | . . . . . . . . . . . . . . . . . . . Average Slot Usage (%) 90 | . 99 98 98 100 100 99 94 88 68 73 86 92 87 87 80 76 85 83 Engine 3 | . 8 . 10 11 9 8 . . . . . . . . . . 4 . Core 3 | . 5 14 . . . . 4 6 3 6 6 5 5 5 5 5 1 . Treads 6 | . 27 28 5 . . . . . 7 20 21 4 . . . . . 3 Wheel 11 | . . . 16 22 22 22 21 15 3 . 2 10 11 11 11 11 9 5 Device 11 | . 14 5 10 11 11 3 11 6 8 13 7 20 11 11 5 5 11 14 Storage 7 | . 14 14 11 11 11 11 6 6 6 6 6 5 5 5 5 5 7 4 Processor 7 | . . . . . . . 4 8 8 13 13 14 17 17 15 17 11 9 Hackware 6 | . . . . . . . 15 17 8 6 . 2 11 11 7 5 9 9 Protection 5 | . . 6 10 11 11 18 6 5 3 6 6 1 . . 4 5 4 4 Energy Gun 3 | . 1 . 10 . . . . . . . . 8 8 . . . 3 8 Energy Cannon 1 | . . . . . . . . . . . . . 1 5 5 . 5 3 Ballistic Gun 13 | . 20 . 20 33 19 19 16 19 4 . 6 13 10 13 9 . 5 4 Ballistic Cannon 4 | . 5 28 . . 13 13 2 . 10 . 13 . . 2 . 11 5 1 Peak Build Rating 139 | 7 11 12 33 31 38 39 72 66 62 58 65 92 95 93 100 97 131 139 Average Rating 61 | 5 8 11 27 31 34 33 58 61 45 49 58 82 89 92 94 95 111 123 On Entrance 53 | . 7 11 12 31 31 38 32 66 60 61 49 58 85 89 92 98 94 105 Naked Turns 14 | . . . . . . . . . . . . . . . . . . 14 Heaviest Build 175 | 15 92 92 109 107 117 117 122 106 106 93 113 118 115 116 142 141 175 175 Greatest Support 101 | 40 40 40 40 24 24 24 56 52 78 78 101 81 56 56 56 56 56 75 Greatest Overweight (x) 29 | . 2 2 4 4 4 4 6 2 29 1 1 11 2 3 2 2 6 10 Average Overweight (x) 2 | . 1 2 3 4 3 4 1 1 2 1 1 2 1 2 1 2 2 7 Largest Inventory Capacity 25 | 8 25 25 25 25 25 25 25 25 25 25 25 25 25 25 25 25 25 25 Average Capacity 24 | 7 20 25 25 25 25 25 25 25 25 25 25 25 25 25 25 25 25 24 Most Carried 25 | 5 19 25 25 25 25 25 25 25 25 22 25 25 25 25 25 25 25 25 Average Carried 22 | 2 11 20 23 25 24 22 23 23 20 21 23 24 24 24 24 24 23 23 Final Capacity 25 | 8 25 25 25 25 25 25 25 25 25 25 25 25 25 25 25 25 25 5 Final Carried 25 | 4 19 25 25 25 25 21 25 25 19 22 25 25 24 25 25 25 25 3 Class Distribution -------------------- 18% | Tank 16% | Hacker-Skirmisher 12% | Mutant 11% | Hacker-Gunner 7% | Trapper-Skirmisher 5% | Skirmisher 5% | Scavenger-Skirmisher 5% | Hacker-Tank 4% | Trapper-Tank 3% | Gunner 3% | Trapper-Mutant Dominant Class ---------------- Mutant | -10/Materials Mutant | -10/Mines Tank | -9/Materials Tank | -9/Mines Tank | -7/Zion Tank | -6/Proximity Caves Hacker-Gunner | -6/Factory Hacker-Tank | -6/Lower Caves Trapper-Mutant | -6/Lower Caves Commander-Mutant | -6/Data Miner Trapper-Tank | -5/Proximity Caves Trapper-Skirmisher | -5/Factory Scavenger-Skirmisher | -5/Upper Caves Hacker-Skirmisher | -5/Upper Caves Gunner | -5/Warlord Skirmisher | -4/Proximity Caves Hacker-Gunner | -4/Factory Hacker-Skirmisher | -4/Armory Resources | -11 -10 -10 -9 -9 -7 -6 -6 -6 -6 -6 -5 -5 -5 -5 -5 -4 -4 -4 ----------- Run | Yrd Mat Min Mat Min Zio Pro Fac Low Low Dat Pro Fac Upp Upp War Pro Fac Arm Matter Collected 14201 | 280 792 171 936 63 50 359 2910 459 597 . 784 2360 247 137 1171 381 1479 1025 Remotely 1023 | . . . . . . . . . . . . . . . 797 . . 226 Salvage Created 14371 | 143 749 107 2008 199 . 298 2822 405 169 . 603 2936 32 108 804 18 2108 862 Parts 699 | 11 68 8 107 18 . 18 116 15 5 . 12 149 9 7 25 . 90 41 Haulers Intercepted 16 | . 2 . 6 . . . 3 . . . . 3 . . . . 2 . Recyclers Shooed 15 | 1 1 . 3 . . . 6 . . . . 2 . . . . 2 . Parts Field Recycled . | . . . . . . . . . . . . . . . . . . . Retrieved Matter . | . . . . . . . . . . . . . . . . . . . Parts Self-Destructed 76 | . . . . . 3 18 . 13 14 . 21 . 4 3 . . . . Prevented 2 | . . . . . . . . . . . 2 . . . . . . . Kills | -11 -10 -10 -9 -9 -7 -6 -6 -6 -6 -6 -5 -5 -5 -5 -5 -4 -4 -4 ------- Run | Yrd Mat Min Mat Min Zio Pro Fac Low Low Dat Pro Fac Upp Upp War Pro Fac Arm Combat Hostiles Destroyed 261 | . 17 5 31 7 . 10 28 12 6 . 11 39 7 6 31 4 34 13 Guns 133 | . 17 . 31 7 . 1 22 5 2 . 3 26 . 1 1 . 12 5 Cannons 44 | . . 5 . . . 3 6 . 1 . 7 . . . 1 2 14 5 AOE 83 | . . . . . . 6 . 7 3 . 1 13 7 5 29 2 8 2 Classes Destroyed 22 | 3 4 . 4 . . 3 3 . 1 . . 1 . . 2 . 1 . Worker 13 | 1 3 . 1 . . . 1 . . . . 6 . . . . 1 . Builder 8 | . . . 1 . . . 3 . . . . 2 . . . . 2 . Tunneler 4 | 2 . . 1 1 . . . . . . . . . . . . . . Hauler 16 | . 2 . 6 . . . 3 . . . . 3 . . . . 2 . Recycler 27 | 1 . 1 7 . . . 9 . . . . 6 . . . . 3 . Minesweeper 5 | . . . . . . 1 . 2 . . 2 . . . . . . . Mechanic 2 | . . . . . . . 2 . . . . . . . . . . . Operator 5 | . . . 1 . . . 1 . . . . 1 . . . . 1 1 Watcher 11 | . 3 . 2 . . . 2 . . . . 3 . . . . 1 . Swarmer 69 | . 6 3 4 5 . 7 . 5 3 . . 14 5 5 5 . 5 2 Cutter 3 | . . . . . . . . . . . . . . . . . 3 . Grunt 98 | . 11 2 20 2 . . 15 4 1 . 5 7 . . 17 4 10 . Brawler 6 | . . . 1 . . . 1 1 . . 2 . . . 1 . . . Duelist 8 | . . . . . . . 1 1 1 . 2 . . . . . 1 2 Protector 5 | . . . . . . . . . . . . . . . 4 . . 1 Sentry 20 | . . . 6 . . 1 3 1 . . 1 3 . . . . 5 . Specialist 4 | . . . . . . . . . . . . 4 . . . . . . Hunter 12 | . . . . . . . 3 . . . . 2 2 . 2 . . 3 Programmer 32 | . . . . . . 1 5 . . . 1 9 . . . . 10 6 Behemoth 2 | . . . . . . 1 . . . . . . . . 1 . . . Executioner 1 | . . . . . . . . . . . . . . . 1 . . . Mutant 2 | . . . . . . . . . 1 . . . . 1 . . . . Best Kill Streak 10 | 2 4 3 6 3 . 4 7 4 4 . 4 7 5 5 10 4 9 2 Combat Bots Only 10 | . 3 3 5 3 . 4 6 4 4 . 4 7 5 5 10 4 9 2 Max Kills in Single Turn 5 | 1 2 1 2 2 . 2 2 3 2 . 1 5 3 4 4 2 3 2 Gunslinging 1 | . 1 . 1 1 . . . 1 . . . . . . . . . . Exploded 4 | . . . . . . 2 . 3 2 . 1 4 3 4 4 2 2 2 Melee . | . . . . . . . . . . . . . . . . . . . Uniques/NPCs Destroyed . | . . . . . . . . . . . . . . . . . . . Combat | -11 -10 -10 -9 -9 -7 -6 -6 -6 -6 -6 -5 -5 -5 -5 -5 -4 -4 -4 -------- Run | Yrd Mat Min Mat Min Zio Pro Fac Low Low Dat Pro Fac Upp Upp War Pro Fac Arm Hostile Shots Fired 1266 | . 66 30 73 16 . 92 198 42 68 . 56 178 22 27 10 18 188 182 Missed 345 | . 18 11 21 6 . 33 61 9 18 . 14 48 4 8 3 6 50 35 Damage Taken 18458 | . 555 216 636 83 . 1142 1998 793 1052 . 1077 2274 301 243 182 484 3507 3915 Core 2665 | . 152 19 52 13 . 249 234 94 81 . 110 252 28 31 . 191 259 900 Absorbed by Shields . | . . . . . . . . . . . . . . . . . . . Redirected to Shielding 30 | . . 22 . . . . . . . . 4 4 . . . . . . Regen/Repaired (Parts) 927 | . 48 . 48 . 73 . 121 . . . . 226 . . 98 . 313 . Core Remaining (%) 47 | 100 . 31 . . . 21 . . . . 38 . . . . 49 . . Volleys Fired 807 | 10 67 17 92 7 . 31 164 32 21 . 37 126 8 7 29 12 92 55 Largest 4 | 2 2 2 3 3 . 3 3 3 3 . 3 4 2 4 4 3 4 4 Hottest 366 | 90 70 70 163 69 . 137 136 76 129 . 129 228 92 222 285 195 366 338 Shots Fired 2170 | 20 134 34 265 21 . 77 417 76 49 . 101 429 13 21 46 20 288 159 Gun 1563 | 20 132 . 265 21 . 43 322 66 9 . 31 411 4 12 6 3 113 105 Cannon 516 | . 2 34 . . . 28 92 . 37 . 67 9 . 7 14 10 163 53 Launcher 91 | . . . . . . 6 3 10 3 . 3 9 9 2 26 7 12 1 Special . | . . . . . . . . . . . . . . . . . . . Kinetic 1521 | . 115 34 176 21 . 71 391 66 46 . 98 261 4 13 15 10 122 78 Thermal 533 | 20 19 . 89 . . . 23 . . . . 159 . 6 5 3 129 80 Explosive 91 | . . . . . . 6 3 10 3 . 3 9 9 2 26 7 12 1 Electromagnetic 25 | . . . . . . . . . . . . . . . . . 25 . Robot Hit Streak 30 | 7 28 30 13 9 . 4 15 8 8 . 9 14 6 9 6 2 16 8 Robot Miss Streak 9 | 2 4 2 9 1 . 3 5 5 5 . 3 8 3 1 2 4 5 4 Penetration Max 2 | . . . . . . . . 1 . . . 1 . . 1 . 1 2 Secondary Targets 17 | . 2 . 3 1 . . 3 1 . . . 3 . . . . 4 . Max Gunslinging Chain 1 | . 1 . 1 1 . . 1 1 . . . 1 . . . . 1 . Shots Hit Robots 1201 | 12 93 19 161 12 . 42 249 49 21 . 56 219 7 11 9 4 149 88 Core Hits 703 | 5 41 7 72 9 . 26 104 33 20 . 27 105 7 10 91 13 94 39 Critical Kills 8 | . . . . . . 1 1 . . . . . . . . . 4 2 Critical Parts Destroyed 35 | . 1 . 1 . . 5 . 3 . . . 2 . . 1 1 9 12 Critical Strikes 78 | 2 2 1 4 . . 6 5 3 . . 2 10 . 1 2 2 22 16 Burn 18 | 2 1 . 2 . . . . . . . . 8 . . . . 3 2 Destroy 45 | . 1 . 2 . . 6 1 3 . . . 2 . . 2 1 13 14 Blast 15 | . . 1 . . . . 4 . . . 2 . . 1 . 1 6 . Melee Attacks 1 | . . . . . . . . . . . . 1 . . . . . . Impact . | . . . . . . . . . . . . . . . . . . . Slashing 1 | . . . . . . . . . . . . 1 . . . . . . Piercing . | . . . . . . . . . . . . . . . . . . . Sneak Attacks . | . . . . . . . . . . . . . . . . . . . Combat Hostiles . | . . . . . . . . . . . . . . . . . . . Follow-up Attacks . | . . . . . . . . . . . . . . . . . . . Damage Inflicted 43252 | 137 1230 351 2973 209 . 1077 5885 1508 1133 . 1742 6736 1454 879 6278 1451 7355 2854 Guns 19199 | 137 1183 . 2970 209 . 424 4657 839 114 . 453 5046 20 141 100 . 1677 1229 Cannons 8481 | . 37 351 . . . 303 1228 . 491 . 1079 . . 136 120 129 3204 1403 Explosions 15559 | . . . . . . 350 . 669 528 . 210 1690 1434 602 6058 1322 2474 222 Melee . | . . . . . . . . . . . . . . . . . . . Ramming 13 | . 10 . 3 . . . . . . . . . . . . . . . Kinetic 19297 | . 1024 351 1936 209 . 727 5785 839 605 . 1532 2998 20 204 161 129 2031 746 Thermal 8676 | 137 196 . 1034 . . . 100 . . . . 2160 . 156 59 . 2948 1886 Explosive 14720 | . . . . . . 350 . 669 528 . 210 1578 1434 519 6058 1322 1830 222 Electromagnetic 546 | . . . . . . . . . . . . . . . . . 546 . Impact . | . . . . . . . . . . . . . . . . . . . Slashing . | . . . . . . . . . . . . . . . . . . . Piercing . | . . . . . . . . . . . . . . . . . . . Highest Corruption 23 | . . . . . . 1 2 . 8 8 8 2 1 2 2 . 8 23 Average Corruption 4 | . . . . . . 1 1 . 7 8 4 1 1 1 2 . 4 13 Corruption Purged 9 | . . . . . . . 2 . . . 5 2 . . . . . . Corruption Blocked 14 | . . . . . . . . . . . . 14 . . . . . . Effects 216 | . . . . . . 3 15 . 20 5 38 13 9 7 . . 32 74 Message Errors 52 | . . . . . . 1 3 . 7 . 7 2 3 1 . . 5 23 Matter Fused 53 | . . . . . . . 4 . 4 2 8 5 2 2 . . 8 18 Heat Flow Errors 21 | . . . . . . . 3 . 1 1 3 1 1 2 . . 4 5 Energy Discharges 28 | . . . . . . 1 2 . 5 . 5 2 . . . . 3 10 Parts Rejected 2 | . . . . . . . . . . . . . 1 . . . 1 . Parts Fused 2 | . . . . . . . . . . . 1 . . . . . 1 . Data Loss (minor) 24 | . . . . . . . 2 . 1 1 8 1 . 1 . . 4 6 Data Loss (major) 10 | . . . . . . . . . . 1 1 . 1 . . . 4 3 Misfires 7 | . . . . . . . 1 . 1 . 2 1 . 1 . . 1 . Alerts 6 | . . . . . . . . . 1 . 2 1 1 . . . 1 . Misdirections 4 | . . . . . . . . . . . . . . . . . . 4 Weapon Failures 7 | . . . . . . 1 . . . . 1 . . . . . . 5 Overload Shots . | . . . . . . . . . . . . . . . . . . . Overflow Damage 990 | . . 2 . . . 22 42 63 . . 98 89 77 . 137 85 301 74 Projectiles 237 | . . 2 . . . 4 42 . . . 98 . . . . . 46 45 Explosions 753 | . . . . . . 18 . 63 . . . 89 77 . 137 85 255 29 Melee . | . . . . . . . . . . . . . . . . . . . Knockbacks 37 | . . 5 . . . 2 9 . . . 6 . . . . 1 10 4 Impact . | . . . . . . . . . . . . . . . . . . . Kinetic 35 | . . 5 . . . 2 8 . . . 6 . . . . 1 9 4 Secondary 2 | . . . . . . . 1 . . . . . . . . . 1 . Self-Inflicted Damage 712 | . . . 1 . . 74 . 106 64 . . . . 25 . 65 312 65 Shots 22 | . . . . . . 3 . 6 2 . . . . 1 . 2 7 1 Rammed 2 | . 1 . 1 . . . . . . . . . . . . . . . Targets Rammed 2 | . 1 . 1 . . . . . . . . . . . . . . . Kicked . | . . . . . . . . . . . . . . . . . . . Crushed . | . . . . . . . . . . . . . . . . . . . Highest Temperature 617 | 102 210 216 464 2 . 617 273 . 48 25 281 218 124 128 230 526 469 588 Average Temperature 97 | 47 77 84 84 2 . 136 57 . 29 25 88 26 65 43 35 183 113 197 Received Heat Transfer 2794 | . 306 81 309 9 . 461 375 153 171 . 270 81 . 45 36 79 418 . Effects 29 | . . . 3 . . 8 3 . . . . . . . . 6 2 7 Shutdowns 5 | . . . 1 . . 2 . . . . . . . . . . 1 1 Energy Bleed 5 | . . . 1 . . 1 . . . . . . . . . 2 1 . Interference 6 | . . . . . . . 3 . . . . . . . . 3 . . Matter Decay 4 | . . . . . . 2 . . . . . . . . . . . 2 Short Circuit 2 | . . . 1 . . 1 . . . . . . . . . . . . Damage (minor) 1 | . . . . . . 1 . . . . . . . . . . . . Damage (major) 4 | . . . . . . . . . . . . . . . . . . 4 Damage (core) 2 | . . . . . . 1 . . . . . . . . . 1 . . Siege Activations . | . . . . . . . . . . . . . . . . . . . Robots Corrupted . | . . . . . . . . . . . . . . . . . . . Combat Hostiles . | . . . . . . . . . . . . . . . . . . . Parts Fried 4 | . . . . . . . . . . . 1 . . . . . 3 . Impact Corruptions . | . . . . . . . . . . . . . . . . . . . Robots Melted 1 | . . . . . . . . . . . . . . . . . . 1 Combat Hostiles 1 | . . . . . . . . . . . . . . . . . . 1 Parts Melted 24 | . . . 1 . . . . . 1 . . 12 . . . . 1 9 Heat Transferred 11090 | 508 666 . 2294 . . . 137 . . . . 3824 . 50 37 . 1632 1942 Parts Sabotaged . | . . . . . . . . . . . . . . . . . . . Parts Stolen . | . . . . . . . . . . . . . . . . . . . Parts Stripped . | . . . . . . . . . . . . . . . . . . . Power Chain Reactions 1 | . . . . . . . . . . . . . . 1 . . . . Alert | -11 -10 -10 -9 -9 -7 -6 -6 -6 -6 -6 -5 -5 -5 -5 -5 -4 -4 -4 ------- Run | Yrd Mat Min Mat Min Zio Pro Fac Low Low Dat Pro Fac Upp Upp War Pro Fac Arm Peak Influence 1026 | 20 209 128 615 407 . . 692 . . . . 1026 . . . . 643 437 Initial 315 | . 13 8 1 217 . . 69 . . . . 65 . . . . . 315 Average 215 | 5 65 41 169 329 . . 203 . . . . 324 . . . . 285 259 Maximum Alert Level 3 | . 1 . 2 2 . . 2 . . . . 3 . . . . 2 2 Low Security (%) 59 | 100 97 100 71 . . . 65 . . . . 50 . . . . 17 38 Level 1 23 | . 2 . 12 79 . . 10 . . . . 18 . . . . 65 56 Level 2 13 | . . . 15 20 . . 24 . . . . 11 . . . . 17 5 Level 3 4 | . . . . . . . . . . . . 20 . . . . . . Level 4 . | . . . . . . . . . . . . . . . . . . . Level 5 . | . . . . . . . . . . . . . . . . . . . High Security . | . . . . . . . . . . . . . . . . . . . Max Security . | . . . . . . . . . . . . . . . . . . . Squads Dispatched 46 | . 2 . 7 . . . 11 . 1 . . 14 . . . . 7 4 Investigation 13 | . 2 . 4 . . . 2 . . . . 4 . . . . . 1 Extermination 16 | . . . . . . . 4 . . . . 5 . . . . 4 3 Reinforcement 13 | . . . 3 . . . 4 . . . . 5 . . . . 1 . Assault 2 | . . . . . . . . . 1 . . . . . . . 1 . Garrison 2 | . . . . . . . 1 . . . . . . . . . 1 . Intercept . | . . . . . . . . . . . . . . . . . . . Searches Triggered . | . . . . . . . . . . . . . . . . . . . Data Miner Redirects 3 | . . . . . . . . . . . . 2 . . . . . 1 Construction Impeded . | . . . . . . . . . . . . . . . . . . . Haulers Reinforced 1 | . . . . . . . 1 . . . . . . . . . . . Active Scanning Responses . | . . . . . . . . . . . . . . . . . . . Cargo Convoy Interrupts . | . . . . . . . . . . . . . . . . . . . Stealth | -11 -10 -10 -9 -9 -7 -6 -6 -6 -6 -6 -5 -5 -5 -5 -5 -4 -4 -4 --------- Run | Yrd Mat Min Mat Min Zio Pro Fac Low Low Dat Pro Fac Upp Upp War Pro Fac Arm Distress Signals 6 | . . . 2 . . . 2 . . . . 1 . . . . . 1 Communications Jammed 113 | . . . . . . . . . . . . 3 . . . . 85 25 Distress Signals 107 | . . . . . . . . . . . . 3 . . . . 79 25 Times Spotted 362 | . 28 5 44 7 . 11 47 9 16 . 23 41 7 4 36 4 52 28 Peak Tracking Total 12 | . 3 3 4 4 . 5 5 5 8 . 6 4 3 4 12 4 7 7 Tactical Retreats 10 | . . . . 1 . 1 2 . 2 . . 2 1 . . . 1 . Traps | -11 -10 -10 -9 -9 -7 -6 -6 -6 -6 -6 -5 -5 -5 -5 -5 -4 -4 -4 ------- Run | Yrd Mat Min Mat Min Zio Pro Fac Low Low Dat Pro Fac Upp Upp War Pro Fac Arm Traps Triggered 7 | . . . 1 . . . 1 . . . . 5 . . . . . . Indirectly . | . . . . . . . . . . . . . . . . . . . Trap Hack Attempts . | . . . . . . . . . . . . . . . . . . . Triggered . | . . . . . . . . . . . . . . . . . . . Disarmed . | . . . . . . . . . . . . . . . . . . . Reprogrammed 1 | . 1 . . . . . . . . . . . . . . . . . Reused 5 | . . . . . . . 3 . . . . 2 . . . . . . Traps Extracted . | . . . . . . . . . . . . . . . . . . . Installed 14 | . . . . . . 1 6 . . . . 7 . . . . . . Triggered 16 | . . . . . . . 3 . . . 3 2 . . 8 . . . Most Traps Carried 10 | . . . . . . 6 6 8 8 8 10 10 . . . . . . Machines | -11 -10 -10 -9 -9 -7 -6 -6 -6 -6 -6 -5 -5 -5 -5 -5 -4 -4 -4 ---------- Run | Yrd Mat Min Mat Min Zio Pro Fac Low Low Dat Pro Fac Upp Upp War Pro Fac Arm Machines Disabled 31 | . 1 . . . . . 3 . 2 . . 5 . 1 . . 11 8 Max in Single Turn 5 | . 1 . . . . . 1 . 1 . . 5 . 1 . . 3 1 Garrison Access 3 | . . . . . . . 2 . . . . . . . . . 1 . Machines Repaired . | . . . . . . . . . . . . . . . . . . . Machines Dismantled 2 | . . . . . . . . . . . . . . . . . . 2 Machines Sabotaged . | . . . . . . . . . . . . . . . . . . . Overloaded Fab Kills . | . . . . . . . . . . . . . . . . . . . Hacking | -11 -10 -10 -9 -9 -7 -6 -6 -6 -6 -6 -5 -5 -5 -5 -5 -4 -4 -4 --------- Run | Yrd Mat Min Mat Min Zio Pro Fac Low Low Dat Pro Fac Upp Upp War Pro Fac Arm Machines Accessed 63 | . 11 1 10 . . . 11 . 1 4 . 8 . 2 . . 9 6 Terminals 28 | . 8 . 6 . . . 5 . . . . 2 . . . . 4 3 Fabricators 6 | . . . . . . . 1 . . . . 3 . . . . . 2 Repair Stations 7 | . 1 . 1 . . . 2 . . . . 1 . . . . 1 1 Recycling Units 9 | . 2 . 2 . . . 1 . . . . 2 . . . . 2 . Scanalyzers 2 | . . . 1 . . . . . . . . . . . . . 1 . Garrison Access 3 | . . . . . . . 2 . . . . . . . . . 1 . Total Hacks 203 | . 32 1 27 . . . 27 . 1 32 . 30 . 4 . . 34 15 Successful 116 | . 16 1 12 . . . 14 . 1 32 . 15 . 4 . . 18 3 Failed 86 | . 15 . 15 . . . 13 . . . . 15 . . . . 16 12 Catastrophic 16 | . 1 . 2 . . . 1 . . . . 3 . . . . 3 6 Database Lockouts 1 | . 1 . . . . . . . . . . . . . . . . . Manual 68 | . 23 . 9 . 1 . 5 . . . . 9 . . 1 . 17 3 Terminals 88 | . 26 . 18 . . . 11 . . . . 10 . . . . 17 6 Fabricators 16 | . . . . . . . 4 . . . . 8 . . . . . 4 Repair Stations 27 | . 3 . 2 . . . 5 . . . . 5 . . . . 7 5 Recycling Units 24 | . 3 . 4 . . . 4 . . . . 7 . . . . 6 . Scanalyzers 4 | . . . 3 . . . . . . . . . . . . . 1 . Garrison Access 6 | . . . . . . . 3 . . . . . . . . . 3 . Terminal Hacks 64 | . 10 1 4 . . . 3 . 1 32 . 3 . 4 . . 5 1 Record 15 | . . . . . . . . . . 11 . . . 3 . . 1 . Part Schematic 12 | . . . . . . . . . . 12 . . . . . . . . Robot Schematic 6 | . . . . . . . . . . 6 . . . . . . . . Robot Analysis 2 | . 2 . . . . . . . . . . . . . . . . . Prototype ID Bank 5 | . 2 . . . . . . . . 3 . . . . . . . . Open Door 4 | . . 1 . . . . . . 1 . . . . 1 . . . 1 Level Access Points 1 | . . . . . . . 1 . . . . . . . . . . . Branch Access Points 3 | . . . . . . . 1 . . . . 1 . . . . 1 . Terminal Index 2 | . . . . . . . 1 . . . . 1 . . . . . . Recycling Unit Index 1 | . . . 1 . . . . . . . . . . . . . . . Scanalyzer Index 1 | . 1 . . . . . . . . . . . . . . . . . Unreport Threat 7 | . 3 . 2 . . . . . . . . 1 . . . . 1 . Locate Traps 2 | . 1 . . . . . . . . . . . . . . . 1 . Reprogram Traps 1 | . 1 . . . . . . . . . . . . . . . . . Hauler Manifests 1 | . . . 1 . . . . . . . . . . . . . . . Zone Layout 1 | . . . . . . . . . . . . . . . . . 1 . Fabricator Hacks 7 | . . . . . . . 2 . . . . 5 . . . . . . Load Schematic 4 | . . . . . . . 1 . . . . 3 . . . . . . Build 3 | . . . . . . . 1 . . . . 2 . . . . . . Repair Station Hacks 18 | . 2 . 2 . . . 3 . . . . 2 . . . . 7 2 Scan Component 9 | . 1 . 1 . . . 2 . . . . 1 . . . . 3 1 Repair 8 | . 1 . 1 . . . 1 . . . . 1 . . . . 3 1 Refit 1 | . . . . . . . . . . . . . . . . . 1 . Recycling Unit Hacks 5 | . . . . . . . 1 . . . . 3 . . . . 1 . Retrieve Matter 2 | . . . . . . . . . . . . 2 . . . . . . Retrieve Components 3 | . . . . . . . 1 . . . . 1 . . . . 1 . Scanalyzer 3 | . . . 2 . . . . . . . . . . . . . 1 . Insert Component 2 | . . . 1 . . . . . . . . . . . . . 1 . Analyze 1 | . . . 1 . . . . . . . . . . . . . . . Garrison Access Hacks 2 | . . . . . . . 2 . . . . . . . . . . . Seal Access 2 | . . . . . . . 2 . . . . . . . . . . . Unauthorized Hacks 17 | . 4 . 4 . . . 3 . . . . 2 . . . . 4 . Terminals 8 | . 2 . 2 . . . 2 . . . . 1 . . . . 1 . Botnet 7 | . 2 . 2 . . . 1 . . . . 1 . . . . 1 . Operators 1 | . . . . . . . 1 . . . . . . . . . . . Fabricators . | . . . . . . . . . . . . . . . . . . . Repair Stations . | . . . . . . . . . . . . . . . . . . . Recycling Units 9 | . 2 . 2 . . . 1 . . . . 1 . . . . 3 . Reject 4 | . . . . . . . 1 . . . . 1 . . . . 2 . Recyclers 1 | . . . . . . . . . . . . . . . . . 1 . Tunnel 4 | . 2 . 2 . . . . . . . . . . . . . . . Scanalyzers . | . . . . . . . . . . . . . . . . . . . Garrison Access . | . . . . . . . . . . . . . . . . . . . Data Cores Recovered 1 | . . . . . . . . . . . . . . . . . 1 . Used 1 | . . . . . . . . . . . . . . . . . 1 . Hacking Detections 49 | . 9 . 9 . . . 10 . . . . 7 . . . . 9 5 Full Trace Events 12 | . 2 . 3 . . . 2 . . . . 4 . . . . . 1 Feedback Events 3 | . . . . . . . . . . . . 3 . . . . . . Corruption 2 | . . . . . . . . . . . . 2 . . . . . . Hackware Fried 1 | . . . . . . . . . . . . 1 . . . . . . Feedback Blocked . | . . . . . . . . . . . . . . . . . . . Robot Schematics Acquired 9 | . . . . . 3 . . . . 6 . . . . . . . . Robots Built . | . . . . . . . . . . . . . . . . . . . Authchips . | . . . . . . . . . . . . . . . . . . . Time . | . . . . . . . . . . . . . . . . . . . Total Robot Build Rating . | . . . . . . . . . . . . . . . . . . . Part Schematics Acquired 27 | . . . 1 . 14 . . . . 12 . . . . . . . . Parts Built 4 | . . . . . . . 2 . . . . 2 . . . . . . Authchips . | . . . . . . . . . . . . . . . . . . . Time 168 | . . . . . . . 42 . . . . 126 . . . . . . Total Part Build Rating 16 | . . . . . . . 8 . . . . 8 . . . . . . Parts Repaired 7 | . 1 . 1 . . . 1 . . . . 1 . . . . 3 . Time 257 | . 26 . 26 . . . 19 . . . . 22 . . . . 144 20 Parts Recycled . | . . . . . . . . . . . . . . . . . . . Recycled Matter . | . . . . . . . . . . . . . . . . . . . Retrieved Matter . | . . . . . . . . . . . . . . . . . . . Retrieved Components 9 | . . . . . . . 8 . . . . 1 . . . . . . Parts Scanalyzed 1 | . . . 1 . . . . . . . . . . . . . . . Part Schematics Acquired 1 | . . . 1 . . . . . . . . . . . . . . . Parts Damaged . | . . . . . . . . . . . . . . . . . . . Bothacking | -11 -10 -10 -9 -9 -7 -6 -6 -6 -6 -6 -5 -5 -5 -5 -5 -4 -4 -4 ------------ Run | Yrd Mat Min Mat Min Zio Pro Fac Low Low Dat Pro Fac Upp Upp War Pro Fac Arm Used RIF Installer . | . . . . . . . . . . . . . . . . . . . Robots Hacked . | . . . . . . . . . . . . . . . . . . . Non-combat . | . . . . . . . . . . . . . . . . . . . Combat . | . . . . . . . . . . . . . . . . . . . Robot Hacks Applied . | . . . . . . . . . . . . . . . . . . . Relay Couplers Released 10 | . . . . . . . . . . . . . . . . . 10 . Machine Destruction 3 | . . . . . . . . . . . . . . . . . 3 . Programmers 7 | . . . . . . . . . . . . . . . . . 7 . Fabnet Peak Effective % . | . . . . . . . . . . . . . . . . . . . Robots Rewired 12 | . . . . . . . . 1 6 . 2 . . . . . . 3 Allies Hacked 3 | . . . . . . . . . . . 1 2 . . . . . . Hacks Repelled 1 | . . . . . . . . . . . . . . . . . . 1 Allies | -11 -10 -10 -9 -9 -7 -6 -6 -6 -6 -6 -5 -5 -5 -5 -5 -4 -4 -4 -------- Run | Yrd Mat Min Mat Min Zio Pro Fac Low Low Dat Pro Fac Upp Upp War Pro Fac Arm Total Allies 12 | . . . . . . . . 1 6 . 2 . . . . . . 3 Largest Group 5 | . . . . . . . . 1 5 5 5 2 . . . . . 3 Highest-Rated Group 152 | . . . . . . . . 32 129 129 129 78 . . . . . 152 Highest-Rated Ally 56 | . . . . . . . . 32 32 29 49 49 . . . . . 56 Total Orders 6 | . . . . . . . . . . . . 6 . . . . . . EXPLORE 2 | . . . . . . . . . . . . 2 . . . . . . RETURN 4 | . . . . . . . . . . . . 4 . . . . . . Ally Attacks 94 | . . . . . . . . . 24 . 50 4 . . . . . 16 Total Damage 2919 | . . . . . . . . . 882 . 1149 221 . . . . . 667 Kills 26 | . . . . . . . . . 10 . 10 . . . . . . 6 Allies Corrupted 2 | . . . . . . . . . 1 . . . . . . . . 1 Allies Melted . | . . . . . . . . . . . . . . . . . . . Intel | -11 -10 -10 -9 -9 -7 -6 -6 -6 -6 -6 -5 -5 -5 -5 -5 -4 -4 -4 ------- Run | Yrd Mat Min Mat Min Zio Pro Fac Low Low Dat Pro Fac Upp Upp War Pro Fac Arm Robot Analysis Total 2 | . 2 . . . . . . . . . . . . . . . . . Derelict Logs Recovered 8 | . . . . 1 2 . . 2 . . 1 . . . . 2 . . Drone Launches 6 | . . . . . . . . . . . . 6 . . . . . . Drone Recoveries 4 | . . . . . . . . . . . . 4 . . . . . . Exploration | -11 -10 -10 -9 -9 -7 -6 -6 -6 -6 -6 -5 -5 -5 -5 -5 -4 -4 -4 ------------- Run | Yrd Mat Min Mat Min Zio Pro Fac Low Low Dat Pro Fac Upp Upp War Pro Fac Arm Turns Passed 24264 | 193 2300 484 2073 354 1291 750 3765 767 1289 208 1418 3306 701 575 791 483 1963 1553 Spaces Moved 11544 | 94 755 130 908 208 824 411 2009 548 407 85 514 1535 577 396 404 332 851 556 Core 44 | 2 . . . . . . . . 10 . . . . . . . . 32 Treads 2152 | 92 755 130 139 . . . . . 239 85 514 197 . . . . . 1 Legs . | . . . . . . . . . . . . . . . . . . . Wheels 9348 | . . . 769 208 824 411 2009 548 158 . . 1338 577 396 404 332 851 523 Hover . | . . . . . . . . . . . . . . . . . . . Flight . | . . . . . . . . . . . . . . . . . . . Fastest Speed 50 | 50 160 320 145 150 135 150 108 108 120 240 240 115 115 115 115 130 130 50 Average Speed 160 | 157 260 320 174 150 149 150 118 117 283 240 240 147 115 135 127 130 133 203 Slowest Speed 1500 | 160 320 320 320 150 150 150 170 125 1500 240 240 320 130 145 130 130 190 250 Overloaded Moves . | . . . . . . . . . . . . . . . . . . . Propulsion Burnouts . | . . . . . . . . . . . . . . . . . . . Robots Hopped . | . . . . . . . . . . . . . . . . . . . Cave-ins Triggered . | . . . . . . . . . . . . . . . . . . . Exploration Rate (%) 53 | 6 96 23 73 46 82 54 35 60 57 74 68 41 76 54 68 53 21 27 Regions Visited 18 Branch Regions 13 Pre-discovered Areas 9 | . 2 . 2 . 3 . . . . 1 1 . . . . . . . Known Exits Taken 8 | . . . . . . . 1 . . . 1 1 1 1 1 1 1 . Unknown Exits Taken 10 | 1 1 1 1 1 1 1 . 1 1 1 . . . . . . . . Scrap Searched 18 | . . 1 . 1 3 2 . 2 3 . 2 . 1 1 . 2 . . Spaces Dug 69 | . . . . . . . 26 . . . . 8 22 . . . 13 . Terrain Destroyed 901 | . . . . . . 51 68 45 30 . 31 130 99 41 94 83 203 26 Melee 1 | . . . . . . . . . . . . 1 . . . . . . Projectile 186 | . . . . . . 9 44 . 8 . 10 23 1 8 11 4 51 17 AOE 714 | . . . . . . 42 24 45 22 . 21 106 98 33 83 79 152 9 Terrain Rammed . | . . . . . . . . . . . . . . . . . . . Walls Destroyed . | . . . . . . . . . . . . . . . . . . . Machines Disabled . | . . . . . . . . . . . . . . . . . . . Actions | -11 -10 -10 -9 -9 -7 -6 -6 -6 -6 -6 -5 -5 -5 -5 -5 -4 -4 -4 --------- Run | Yrd Mat Min Mat Min Zio Pro Fac Low Low Dat Pro Fac Upp Upp War Pro Fac Arm Total 15720 | 116 956 169 1222 234 885 486 3151 617 499 91 618 2318 596 416 645 367 1478 856 Wait 2344 | . 88 6 138 20 43 15 810 19 8 4 24 459 . 3 161 6 424 116 Move 11526 | 93 754 129 907 207 823 410 2008 547 406 84 513 1534 576 395 403 331 850 556 Hop . | . . . . . . . . . . . . . . . . . . . Pick Up 218 | 4 15 9 29 . 4 7 41 4 4 . 8 34 1 3 11 4 22 18 Fast Attach 124 | 7 5 . 8 . 2 . 22 1 4 . 6 33 1 . 4 2 17 12 Attach 125 | 1 . . 5 . 2 10 17 3 10 . 6 22 2 2 8 4 19 14 Detach 72 | 1 4 1 3 . 3 4 11 1 . 3 2 11 . 1 7 1 13 6 Swap 130 | . 10 2 4 . 1 3 21 7 1 . 3 28 7 4 7 1 21 10 Drop 238 | . 12 5 35 . 7 5 51 2 . . . 54 1 1 15 6 20 24 Fire 807 | 10 67 17 92 7 . 31 164 32 21 . 37 126 8 7 29 12 92 55 Melee 1 | . . . . . . . . . . . . 1 . . . . . . Ram 1 | . . . 1 . . . . . . . . . . . . . . . Kick . | . . . . . . . . . . . . . . . . . . . Crush 1 | . 1 . . . . . . . . . . . . . . . . . Escape Stasis 9 | . . . . . . . . . . . . 9 . . . . . . Rewire 97 | . . . . . . . . 1 45 . 19 . . . . . . 32 Trap 14 | . . . . . . 1 6 . . . . 7 . . . . . . Miscellaneous 13 | . . . . . . . . . . . . . . . . . . 13 Route ------- -11/Scrapyard -10/Materials (discovered 4 exits: *Mat x3 / *Min) -10/Mines -9/Materials (discovered 4 exits: [*Mat x2] / [*Min] / [*Sto]) -9/Mines (discovered 2 exits: [*Mat] / *Zio) -7/Zion -6/Proximity Caves -6/Factory (discovered 8 exits: *Fac x4 / *Low x2 / *Ext x2) -6/Lower Caves -6/Lower Caves -6/Data Miner -5/Proximity Caves -5/Factory (discovered 4 exits: *Fac x2 / *Upp x2) -5/Upper Caves -5/Upper Caves -5/Warlord -4/Proximity Caves -4/Factory (discovered 4 exits: *Res / Upp x2 / *Arm) -4/Armory History --------- Turn | Location | Event 13 | -11/Scrapyard | Discovered new exit (range 14) 194 | -11/Scrapyard | Entered Materials 300 | -10/Materials | Build established: Mutant 646 | -10/Materials | Discovered new exit (range 12) 710 | -10/Materials | Discovered new exit (range 11) 749 | -10/Materials | Central database locked down 1165 | -10/Materials | Repaired Lgt. Treads 1371 | -10/Materials | Discovered new exit (range 10) 1900 | -10/Materials | Core integrity fell below 50% 2108 | -10/Materials | Discovered new exit (range 12) 2494 | -10/Materials | Entered Mines 2874 | -10/Mines | Discovered new exit (range 8) 2907 | -10/Mines | Met a Derelict who couldn't figure out how to use a Trap Extractor 2978 | -10/Mines | Entered Materials 2978 | -9/Materials | Evolved 2 slots: Utility x1, Weapon x1 3379 | -9/Materials | Build established: Tank 3532 | -9/Materials | Discovered new exit (range 14) 3719 | -9/Materials | Repaired Lgt. Treads 3868 | -9/Materials | Discovered new exit (range 5) 4194 | -9/Materials | Discovered new exit (range 12) 4834 | -9/Materials | Discovered new exit (range 11) 5051 | -9/Materials | Entered Mines 5372 | -9/Mines | Learned Materials emergency access door positions 5376 | -9/Mines | Discovered new exit (range 14) 5389 | -9/Mines | A Derelict revealed a hidden shortcut to a safe place 5405 | -9/Mines | Entered Zion 5519 | -7/Zion | Learned location of Extension (-6) 5611 | -7/Zion | Discovered new exit (range 16) 6011 | -7/Zion | Received a visual enhancement algorithm 6195 | -7/Zion | Learned location of Data Miner (-6) 6305 | -7/Zion | Given the Hacking Drone Bay 6308 | -7/Zion | Found Prototype Device 6367 | -7/Zion | Learned 4 Factory zone layouts 6696 | -7/Zion | Entered Proximity Caves 6847 | -6/Proximity Caves | Spotted B-75 Beast 6896 | -6/Proximity Caves | Core integrity fell below 50% 6896 | -6/Proximity Caves | Destroyed B-75 Beast 7311 | -6/Proximity Caves | Attracted the attention of an 0b10 checkpoint 7425 | -6/Proximity Caves | Discovered new exit (range 15) 7446 | -6/Proximity Caves | Entered Factory 7446 | -6/Factory | Evolved 6 slots: Propulsion x2, Utility x4 7632 | -6/Factory | Identified exit to Factory 7647 | -6/Factory | Found Powered Armor 7939 | -6/Factory | Build established: Hacker-Skirmisher 9407 | -6/Factory | Discovered new exit (range 16) 9702 | -6/Factory | Fabricated Arm. Huge Wheel (x2) 9861 | -6/Factory | Build established: Hacker-Gunner 10460 | -6/Factory | Identified exit to Lower Caves 10460 | -6/Factory | Identified exit to Extension 10933 | -6/Factory | Repaired Imp. Light Armor Plating 10970 | -6/Factory | Garrison activated, responded to threat 11211 | -6/Factory | Entered Lower Caves 11295 | -6/Lower Caves | Learned 4 Factory zone layouts 11342 | -6/Lower Caves | Learned Factory stockpile data 11511 | -6/Lower Caves | Attracted the attention of an 0b10 outpost 11581 | -6/Lower Caves | Lost 4 parts (1n1u2w) 11671 | -6/Lower Caves | Discovered new exit (range 5) 11723 | -6/Lower Caves | Build established: Hacker-Tank 11978 | -6/Lower Caves | Entered another Lower Caves area 11978 | -6/Lower Caves | Accompanied by 1 ally 12172 | -6/Lower Caves | Attracted the attention of an 0b10 outpost 12211 | -6/Lower Caves | Lost 9 parts (1p4n1u3w) 12249 | -6/Lower Caves | Lost 3 parts (2u1w) 12503 | -6/Lower Caves | Build established: Trapper-Mutant 13138 | -6/Lower Caves | Attacked by a delusional Derelict stockpiling Unaware 13238 | -6/Lower Caves | Discovered new exit (range 11) 13267 | -6/Lower Caves | Entered Data Miner 13267 | -6/Data Miner | Accompanied by 5 allies 13269 | -6/Data Miner | Discovered new exit (range 6) 13300 | -6/Data Miner | Met Data Miner 13355 | -6/Data Miner | Learned location of Section 7 (-2) 13355 | -6/Data Miner | Acquired the access code to Warlord's prototype stash 13415 | -6/Data Miner | Received God Mode back door access code from Data Miner 13475 | -6/Data Miner | Entered Proximity Caves 13475 | -5/Proximity Caves | Accompanied by 5 allies 13720 | -5/Proximity Caves | Core integrity fell below 50% 13722 | -5/Proximity Caves | Lost 5 allies 14313 | -5/Proximity Caves | Build established: Trapper-Tank 14661 | -5/Proximity Caves | Spotted B-75 Beast 14745 | -5/Proximity Caves | Build established: Trapper-Gunner 14781 | -5/Proximity Caves | Discovered exit to Factory (range 19) 14821 | -5/Proximity Caves | Learned location of Armory (-4) 14893 | -5/Proximity Caves | Entered Factory 14893 | -5/Factory | Accompanied by 2 allies 14893 | -5/Factory | Evolved 2 slots: Utility x1, Weapon x1 15191 | -5/Factory | Identified Hacking Drone Bay 15269 | -5/Factory | Build established: Trapper-Skirmisher 16197 | -5/Factory | Lost 3 parts (1n1u1w) 16265 | -5/Factory | Destroyed 7 combat bots 16392 | -5/Factory | Incoming investigation squad redirected 16418 | -5/Factory | Fabricated Arm. Huge Wheel (x2) 17097 | -5/Factory | Build established: Skirmisher 17200 | -5/Factory | Lost 3 parts (2u1w) 17696 | -5/Factory | Lost 3 parts (3w) 17799 | -5/Factory | Discovered new exit (range 22) 17853 | -5/Factory | Identified exit to Factory 17934 | -5/Factory | Build established: Scavenger-Skirmisher 18009 | -5/Factory | Repaired Arm. Huge Wheel 18030 | -5/Factory | Identified exit to Upper Caves 18126 | -5/Factory | Imp. System Shield fried by hacking feedback 18153 | -5/Factory | Incoming investigation squad redirected 18167 | -5/Factory | Discovered exit to Factory (range 14) 18199 | -5/Factory | Entered Upper Caves 18380 | -5/Upper Caves | Encountered a Warlord checkpoint 18400 | -5/Upper Caves | Attracted the attention of an 0b10 checkpoint 18891 | -5/Upper Caves | Discovered new exit (range 8) 18899 | -5/Upper Caves | Identified exit to Upper Caves 18900 | -5/Upper Caves | Entered another Upper Caves area 18920 | -5/Upper Caves | Attacked by a delusional Derelict stockpiling parts 19220 | -5/Upper Caves | Build established: Hacker-Skirmisher 19269 | -5/Upper Caves | Learned 8 Research zone layouts 19455 | -5/Upper Caves | Discovered new exit (range 14) 19473 | -5/Upper Caves | Identified exit to Warlord 19475 | -5/Upper Caves | Entered Warlord 19515 | -5/Warlord | System corruption cleaned by Quarantine Array 19742 | -5/Warlord | Met Warlord 19767 | -5/Warlord | Warlord's base attacked by MAIN.C 19770 | -5/Warlord | Opened Warlord's prototype stash 19779 | -5/Warlord | Found Prototype Reactor 19786 | -5/Warlord | Found Prototype Device 19786 | -5/Warlord | Identified Thermal Barrier 19795 | -5/Warlord | Found Prototype Device 19795 | -5/Warlord | Identified Exp. Phase Shifter 19803 | -5/Warlord | Found Prototype Processor 19803 | -5/Warlord | Identified Exp. Target Analyzer 19961 | -5/Warlord | Destroyed 10 combat bots 20064 | -5/Warlord | Destroyed 8 combat bots 20117 | -5/Warlord | Warlord forces counterattacked 20152 | -5/Warlord | Spotted Striker 20153 | -5/Warlord | Spotted Executioner 20154 | -5/Warlord | Spotted Executioner 20161 | -5/Warlord | Destroyed Executioner 20186 | -5/Warlord | Destroyed 9 combat bots 20190 | -5/Warlord | Lost 3 allies 20190 | -5/Warlord | Spotted B-86 Titan 20196 | -5/Warlord | Spotted B-75 Beast 20197 | -5/Warlord | Spotted Striker 20214 | -5/Warlord | Destroyed B-86 Titan 20248 | -5/Warlord | Lost 7 allies 20250 | -5/Warlord | Discovered new exit (range 14) 20265 | -5/Warlord | Identified exit to Proximity Caves 20266 | -5/Warlord | Entered Proximity Caves 20331 | -4/Proximity Caves | Core integrity fell below 50% 20412 | -4/Proximity Caves | Learned 12 Research zone layouts 20424 | -4/Proximity Caves | Learned Research machine intel 20554 | -4/Proximity Caves | Build established: Skirmisher 20722 | -4/Proximity Caves | Discovered exit to Factory (range 19) 20749 | -4/Proximity Caves | Entered Factory 20749 | -4/Factory | Evolved 2 slots: Power x1, Utility x1 20821 | -4/Factory | Repaired Smartbomb Launcher 20866 | -4/Factory | Repaired Arm. Huge Wheel 20911 | -4/Factory | Repaired Arm. Huge Wheel 21034 | -4/Factory | Discovered new exit (range 11) 21126 | -4/Factory | Destroyed 9 combat bots 21203 | -4/Factory | Found Prototype Hackware 21203 | -4/Factory | Identified Exp. System Shield 21223 | -4/Factory | Identified exit to Research 22078 | -4/Factory | Identified Vortex Chain Reactor 22210 | -4/Factory | Identified exit to Upper Caves 22210 | -4/Factory | Identified exit to Armory 22392 | -4/Factory | Build established: Hacker-Gunner 22400 | -4/Factory | Found Prototype Launcher 22619 | -4/Factory | Garrison activated, responded to threat 22650 | -4/Factory | Destroyed 7 combat bots 22670 | -4/Factory | Lost 5 parts (1p1n3w) 22712 | -4/Factory | Entered Armory 22966 | -4/Armory | System corruption reached 10% 22989 | -4/Armory | Build established: Hacker-Skirmisher 23886 | -4/Armory | Identified Tesla Bomb Launcher 23887 | -4/Armory | Found Prototype Launcher 23887 | -4/Armory | Identified Com. Tesla Bomb Launcher 23898 | -4/Armory | Found Com. Tesla Bomb Launcher 23901 | -4/Armory | Found Com. Tesla Bomb Launcher 23905 | -4/Armory | Found Com. Tesla Bomb Launcher 23910 | -4/Armory | Found Com. Tesla Bomb Launcher 24090 | -4/Armory | Incoming investigation squad redirected 24216 | -4/Armory | Core integrity fell below 50% 24245 | -4/Armory | Released all parts (7) 24254 | -4/Armory | Core integrity fell below 20% 24265 | -4/Armory | Destroyed by P-70 Sage with High-powered Shock Rifle Last Messages --------------- 24241_ Overheating: Matter decay (-39). 24242_ Quantum Reactor destroyed. 24242_ Hyp. Railgun destroyed. 24245_ Overheating: Exp. Target Analyzer damaged (-9). 24245_ Overheating: Adv. Sensor Array damaged (-1). 24245_ Overheating: Adv. Signal Interpreter damaged (-4). 24245_ Released Lrn. Tractor Beam. 24245_ Released Adv. Sensor Array. 24245_ Released Adv. Signal Interpreter. 24245_ Released Huge Storage Unit. 24245_ Released Adv. Hacking Suite. 24245_ Released Exp. Target Analyzer. 24245_ Released Enh. Nova Cannon. 24249_ P-70 Sage resets S-27 Virus, system corruption cleaned. 24253_ S-27 Virus destroyed. 24253_ Smartbomb Launcher destroyed. 24253_ Destroyed Smartbomb Launcher. 24253_ S-27 Virus destroyed. 24256_ Acquired Autogun. 24261_ Autogun destroyed. Map ----- +----------------------------------------------------+ | ?????????????????????????????????????????????????? | | ?????????????????????????????????????????????????? | | ?????????????????????????????????????????????????? | | ?????????????????????????????????????????????????? | | ?????????????????????????????????????????????????? | | ?????????????????????????????????????????????????? | | ?????????????????????????????????????????????????? | | ?????????????????????????????????????????????????? | | ?????????????????????????????????????????????????? | | ?????????????????????????????????????????????????? | | ?????????????????????????###?????????????????????? | | ????????????????????????? ?? ??????????????????? | | ???????????????????????? ?? #????????????????? | | ???????????????????????? ? #????????????????? | | ????????????????????? ?" ? #????????????????? | | ???????????????????? " " #????????????????? | | ????????????????????? " " #????????????????? | | ?????????????????????? #????????????????? | | ??????????????????????? #????????????????? | | ??????????????????????? #????????????????? | | ???????????????????????? #????????????????? | | ????????????????????????? ######????######## | | ??????????????????#####+#+#;###;#;##;######*!!!/[! | | ??????????????????? ;!! % !!!!*[! | | ??????????????????????+%!= ]]!T!= | | ??????????????????????#!=@ p] ]]!!]! | | ??????????????????????# s *%= ] | | ??????????????????????#########l## #### | | ???????????????????????# % ######+### | | ???????????????????????# ! | | ???????????????????????# " "" " """ """ " | | ???????????????????????# ?" ?" " """ """ T | | ???????????????????????#???"??" " # """ """ " | | ?????????????????????????????? # | | ??????????????????????????????#############"" " ## | | ??????????????????????????????????????????#""T""## | | ??????????????????????????????????????????? """ #? | | ?????????????????????????????????????????????###?? | | ?????????????????????????????????????????????????? | | ?????????????????????????????????????????????????? | | ?????????????????????????????????????????????????? | | ?????????????????????????????????????????????????? | | ?????????????????????????????????????????????????? | | ?????????????????????????????????????????????????? | | ?????????????????????????????????????????????????? | | | | | | | | | | | +----------------------------------------------------+ Best States ------------- Heat Dissipation 105 Energy Generation 55 Energy Capacity 1050 Matter Stores 300 Matter Capacity 300 Sight Range 22 Robot Scan Range 16 Terrain Scan Range 20 Terrain Scan Density 210 Jamming Range 14 Base Temperature (-) 200 Corruption Block 15 Armor Coverage 600 Resistance: KI 20 Resistance: TH 50 Core Shielding 20 Utility Shielding 90 Weapon Shielding 33 Phase Shifting 5 Evasion (%) 50 Targeting Accuracy 8 Target Analysis 14 Recoil Reduction 9 Kinecelleration 30 Salvage Targeting 3 Offensive Hacking 31 Defensive Hacking 16 Trap Extractor Capacity 6 Item Schematics ----------------- Imp. Trap Extractor | -9/Materials | Scanalyzed Imp. Field Recycling Unit | -7/Zion | Archive Arm. Leg | -7/Zion | Archive Falx | -7/Zion | Archive Kinecellerator | -7/Zion | Archive Lgt. Angular Momentum Engine | -7/Zion | Archive Imp. Deuterium Engine | -7/Zion | Archive Imp. Thermal Shield | -7/Zion | Archive Imp. Arc Projector | -7/Zion | Archive Arm. Huge Wheel | -7/Zion | Archive Adv. Sensor Array | -7/Zion | Archive Hvy. Laser | -7/Zion | Archive Force Field | -7/Zion | Archive Imp. Thermal Generator | -7/Zion | Archive Microactuators | -7/Zion | Archive Combat Drone Bay | -6/Data Miner | Free Lgt. Regenerative Plating | -6/Data Miner | Free Cld. Gravmag System | -6/Data Miner | Free Exp. Heat Sink | -6/Data Miner | Free Plasma Sword | -6/Data Miner | Free Imp. Antigrav System | -6/Data Miner | Free Lrn. Terrain Scanner | -6/Data Miner | Free Phase Gun | -6/Data Miner | Free Hyp. Gauss Cannon | -6/Data Miner | Free Hvy. Disruptor Cannon | -6/Data Miner | Free Mic. Antimatter Reactor | -6/Data Miner | Free Impulse Thruster Array | -6/Data Miner | Free Robot Schematics ------------------ A-02 Transporter | -7/Zion | Archive T-07 Excavator | -7/Zion | Archive K-01 Serf | -7/Zion | Archive S-27 Virus | -6/Data Miner | Free R-10 Processor | -6/Data Miner | Free B-60 Warrior | -6/Data Miner | Free G-50 Soldier | -6/Data Miner | Free G-67 Veteran | -6/Data Miner | Free A-27 Freighter | -6/Data Miner | Free Fabricated ------------ Arm. Huge Wheel | x2 | -6/Factory Arm. Huge Wheel | x2 | -5/Factory Alien Tech Used ----------------- None Achievements -------------- None Challenges ------------ None Game ------ Seed MachineComponentMegatreads Manual? 0 Play Time 04:36:51 Cumulative 110.8 hours Start 2025.03.06 @ 20:39:43 End 2025.03.07 @ 16:33:22 Sessions 3 Manual Loads 0 Difficulty Rogue Special Mode None Game No. 91 Rogue 91 Adventurer 0 Explorer 0 Win Type - Total 4 Types 4/0/0/0/0/0/0/0/0 Lore% 51 Gallery% 55 Achievement% 46 Wizard Run 0 Options --------- Layout 0 ASCII 0 Keyboard 1 Movement Numpad Keybinds 0 Fullscreen 1 Font 36/Smallcaps Map View 76x50 Zoom Use 0% Tactical HUD 1 Map Filters NONE Filters NONE Steam 1 RUN: 836950c7-8ecc-4881-ba0d-83bbd00a9ef1